bitfinex/quotes_ETHUSD_20251124
["timestamp","ask_amount","ask_price","bid_price","bid_amount"]
[1763979279544,0.7388165,2802.1,2800.5,0.001]
[1763979279774,0.37483297,2802.0,2800.5,0.001]
[1763979281293,0.7388165,2802.1,2800.5,0.001]
[1763979281892,0.92226502,2802.1,2800.5,0.001]
[1763979282181,0.3333125,2802.0,2800.7,0.1]
[1763979282387,0.04152047,2801.9,2800.5,0.001]
[1763979282550,0.04152047,2801.9,2800.5,0.101]
[1763979282752,0.3333125,2802.0,2800.5,0.101]
[1763979282951,0.3333125,2802.0,2800.5,0.4683041]
[1763979283170,0.04152047,2801.9,2800.5,0.101]
[1763979283771,0.405504,2801.8,2800.5,0.101]
[1763979283977,0.04152047,2801.7,2800.5,0.001]
[1763979284188,0.44702447,2801.9,2800.5,0.001]
[1763979286084,0.405504,2801.9,2800.5,0.001]
[1763979286255,0.44702447,2801.9,2800.5,0.001]
[1763979287576,0.405504,2801.7,2800.5,0.001]
[1763979287776,0.3333125,2801.7,2800.5,0.001]
[1763979287999,0.7388165,2801.8,2800.5,0.001]
[1763979288197,0.21770092,2801.7,2800.5,0.001]
[1763979288406,0.405504,2801.6,2800.5,0.001]
[1763979288572,0.7388165,2801.6,2800.5,0.001]
[1763979288769,0.04152047,2801.5,2800.5,0.001]
[1763979288976,0.405504,2801.8,2800.5,0.001]
[1763979289270,0.22589014,2801.7,2800.5,0.001]
[1763979290808,0.55952703,2801.7,2800.5,0.001]
[1763979291103,0.405504,2801.6,2800.5,0.001]
[1763979291273,0.405504,2801.4,2800.5,0.001]
[1763979291475,0.405504,2801.2,2800.5,0.001]
[1763979291710,0.405504,2801.5,2800.5,0.001]
[1763979291884,0.94851311,2801.4,2800.5,0.001]
[1763979292211,0.405504,2801.2,2800.5,0.001]
[1763979292517,0.73914089,2801.2,2800.5,0.001]
[1763979293115,0.78066136,2801.2,2800.5,0.001]
[1763979293844,0.77986136,2801.2,2800.5,0.001]
[1763979294176,0.73834089,2801.2,2800.5,0.001]
[1763979294376,0.77986136,2801.2,2800.5,0.001]
[1763979294686,5.0618496,2801.0,2800.5,0.001]
[1763979294886,0.50618496,2800.9,2800.5,0.001]
[1763979295910,0.52626051,2801.6,2800.5,0.001]
[1763979296099,0.405504,2801.4,2800.5,0.001]
[1763979296280,0.73967911,2801.4,2800.5,0.001]
[1763979296905,0.44702447,2801.4,2800.5,0.001]
[1763979297411,0.405504,2801.4,2800.5,0.001]
[1763979297578,0.405504,2801.2,2800.5,0.001]
[1763979297773,0.04152047,2801.1,2800.5,0.001]
[1763979297979,0.405504,2801.4,2800.5,0.001]
[1763979298179,0.405504,2801.5,2800.5,0.001]
[1763979298515,1.31249664,2801.5,2800.5,0.001]
[1763979298678,0.405504,2801.8,2800.5,0.001]
[1763979299377,0.405504,2801.6,2800.5,0.001]
[1763979299621,0.04152047,2801.5,2800.5,0.001]
[1763979300152,0.44702447,2801.6,2800.5,0.001]
[1763979300716,0.405504,2801.6,2800.5,0.001]
[1763979301123,0.04152047,2801.5,2800.5,0.001]
[1763979301426,0.405504,2801.6,2800.5,0.001]
[1763979301585,0.04152047,2801.5,2800.5,0.001]
[1763979302208,0.405504,2801.7,2800.5,0.0367079]
[1763979302516,0.04352047,2802.0,2800.5,0.001]
[1763979302739,0.002,2802.0,2800.5,3.60749142]
[1763979302941,0.002,2802.0,2801.2,0.1]
[1763979303242,0.002,2802.0,2800.9,3.762]
[1763979303243,0.002,2802.0,2801.5,0.1]
[1763979303399,0.002,2802.0,2800.8,0.90699264]
[1763979303605,0.002,2802.0,2801.1,0.1]
[1763979303812,0.002,2802.0,2801.3,0.1]
[1763979304014,0.002,2802.0,2801.7,0.1]
[1763979304412,0.002,2802.0,2801.1,0.90699264]
[1763979304600,0.002,2802.0,2801.3,0.1]
[1763979305038,0.002,2802.0,2801.2,0.96445692]
[1763979305244,0.002,2802.0,2801.0,0.1]
[1763979306609,0.002,2802.0,2800.6,0.45144841]
[1763979306959,0.002,2802.0,2800.5,0.001]
[1763979307600,0.04352047,2802.0,2800.5,0.001]
[1763979307807,0.44702447,2801.9,2800.5,0.001]
[1763979310203,1.31249664,2801.5,2800.5,0.001]
[1763979310410,0.405504,2801.3,2800.5,0.001]
[1763979310948,0.405504,2801.4,2800.5,0.001]
[1763979311123,0.76889061,2801.9,2800.5,0.001]
[1763979311305,0.405504,2801.8,2800.5,0.001]
[1763979311842,0.405504,2801.6,2800.5,0.001]
[1763979312141,0.405504,2801.4,2800.5,0.001]
[1763979312346,0.44702447,2801.8,2800.5,0.001]
[1763979312530,0.405504,2801.7,2800.5,0.001]
[1763979312730,0.04152047,2801.6,2800.5,0.001]
[1763979315749,1.31249664,2801.5,2800.5,0.001]
[1763979315958,0.405504,2801.3,2800.5,0.001]
[1763979316530,0.90899264,2802.0,2800.5,0.001]
[1763979316751,0.405504,2801.8,2800.5,0.001]
[1763979317538,0.04152047,2801.7,2800.5,0.001]
[1763979319452,0.405504,2801.6,2800.5,0.001]
[1763979319628,0.04152047,2801.5,2800.5,0.001]
[1763979320026,0.405504,2801.7,2800.5,0.001]
[1763979323168,0.04152047,2801.6,2800.5,0.001]
[1763979325265,0.405504,2801.7,2800.5,0.001]
[1763979327883,0.002,2802.0,2800.6,0.1]
[1763979328173,0.002,2802.0,2800.7,0.1]
[1763979328350,0.002,2802.0,2800.5,0.101]
[1763979328740,0.04152047,2801.9,2800.5,0.101]
[1763979329341,0.04352047,2802.0,2800.5,0.001]
[1763979330581,0.37729323,2802.0,2800.5,0.001]
[1763979332178,0.405504,2801.9,2800.5,0.001]
[1763979332356,0.04152047,2801.8,2800.5,0.001]
[1763979332542,0.405504,2801.7,2800.5,0.001]
[1763979332757,0.405504,2801.5,2800.5,0.001]
[1763979332962,0.04152047,2801.6,2800.5,0.001]
[1763979332963,0.405504,2801.3,2800.5,0.001]
[1763979333289,0.04152047,2801.2,2800.5,0.001]
[1763979334175,0.405504,2801.1,2800.5,0.001]
[1763979334361,0.33377276,2801.6,2800.5,0.001]
[1763979334362,0.405504,2801.6,2800.5,0.001]
[1763979334890,0.73978831,2801.6,2800.5,0.001]
[1763979335496,0.73978831,2801.6,2800.5,0.0367079]
[1763979335497,0.33428431,2801.6,2800.5,0.0367079]
[1763979335659,0.33428431,2801.6,2800.5,0.001]
[1763979335954,0.18670696,2801.7,2800.5,0.001]
[1763979336355,0.52099127,2801.7,2800.5,0.001]
[1763979336560,0.33428431,2801.6,2800.5,0.001]
[1763979336784,0.33428431,2801.6,2800.5,0.101]
[1763979336987,0.04152047,2801.5,2800.5,0.001]
[1763979337186,0.04152047,2801.6,2800.5,0.001]
[1763979337401,0.44702447,2801.6,2800.5,0.001]
[1763979337562,0.78130878,2801.6,2800.5,0.001]
[1763979337779,0.73978831,2801.6,2800.5,0.001]
[1763979338377,0.002,2801.8,2800.7,0.1]
[1763979338615,0.002,2801.8,2800.8,0.1]
[1763979341234,0.0012,2801.8,2800.9,0.1]
[1763979341404,0.0012,2801.8,2801.2,0.1]
[1763979341591,0.0012,2801.8,2800.9,0.405504]
[1763979341790,0.0012,2801.8,2801.5,0.1]
[1763979342033,0.0012,2801.8,2801.7,0.1]
[1763979342698,0.0012,2801.8,2801.2,0.1]
[1763979342899,0.0012,2801.8,2801.5,0.1]
[1763979344427,0.0012,2801.8,2801.0,0.90699264]
[1763979344629,0.0012,2801.8,2801.2,0.1]
[1763979345821,0.0012,2801.8,2800.8,0.1]
[1763979345999,0.0012,2801.8,2800.6,0.1]
[1763979346624,0.0012,2801.8,2800.4,0.1]
[1763979347942,0.0012,2801.8,2800.3,0.90799264]
[1763979348103,0.0012,2801.8,2800.6,0.1]
[1763979348942,0.0012,2801.8,2800.7,0.1]
[1763979349331,0.0012,2801.8,2800.4,4.47787101]
[1763979349639,0.0012,2801.8,2800.9,0.1]
[1763979350335,0.0012,2801.8,2801.0,0.13570153]
[1763979350849,0.0012,2801.8,2801.0,0.1]
[1763979351742,0.0012,2801.8,2800.6,0.1]
[1763979351919,0.0012,2801.8,2800.8,0.1]
[1763979352942,0.0012,2801.8,2801.1,0.1]
[1763979353106,0.0012,2801.8,2800.6,4.47761327]
[1763979353438,0.0012,2801.8,2800.9,0.1]
[1763979355914,0.0012,2801.8,2801.0,0.03570153]
[1763979356116,0.0012,2801.8,2801.1,0.1]
[1763979356714,0.0012,2801.8,2801.1,0.13570026]
[1763979357349,0.0012,2801.8,2801.1,0.1]
[1763979358053,0.0012,2801.8,2800.7,0.405504]
[1763979358255,0.0012,2801.8,2800.9,0.405504]
[1763979360258,0.0012,2801.8,2800.8,0.1]
[1763979360932,0.0012,2801.8,2800.9,0.0357028]
[1763979361134,0.0012,2801.8,2801.4,0.1]
[1763979361663,0.0012,2801.8,2801.2,0.1]
[1763979363048,0.0012,2801.8,2800.9,0.505504]
[1763979363373,0.0012,2801.8,2800.8,0.1]
[1763979364970,0.0004,2801.8,2800.8,0.1]
[1763979365467,0.0004,2801.8,2800.5,0.101]
[1763979366243,0.90699264,2801.7,2800.5,0.001]
[1763979366440,1.09447492,2801.6,2800.5,0.001]
[1763979366634,0.76034407,2801.6,2800.5,0.001]
[1763979367078,0.0004,2801.8,2800.5,0.001]
[1763979367079,0.0004,2801.8,2800.5,0.101]
[1763979367277,0.33463659,2801.8,2800.5,0.101]
[1763979367890,0.33463659,2801.8,2800.5,0.001]
[1763979368249,0.33463659,2801.8,2800.5,0.0367079]
[1763979368757,0.33463659,2801.8,2800.5,0.001]
[1763979369368,1.12859357,2801.8,2800.5,0.001]
[1763979369571,0.33422584,2801.7,2800.6,0.1]
[1763979369882,0.0004,2801.8,2800.9,0.1]
[1763979370070,0.0004,2801.8,2801.1,0.1]
[1763979370501,0.0004,2801.8,2800.8,0.405504]
[1763979370502,0.0004,2801.8,2801.4,0.1]
[1763979370717,0.0004,2801.8,2801.5,0.03569516]
[1763979371020,0.0004,2801.8,2801.0,0.94269417]
[1763979371204,0.0004,2801.8,2801.6,0.1]
[1763979372196,0.0004,2801.8,2801.2,0.1]
[1763979372703,0.0004,2801.8,2800.8,0.1]
[1763979372895,0.0004,2801.8,2801.1,0.1]
[1763979373092,0.0004,2801.8,2801.2,0.03569898]
[1763979373301,0.0004,2801.8,2801.3,0.03569771]
[1763979373892,0.0004,2801.8,2801.4,0.1]
[1763979374617,0.0004,2801.8,2801.5,0.03569516]
[1763979374788,0.0004,2801.8,2801.4,0.1]
[1763979375605,0.0004,2801.8,2801.5,0.03569516]
[1763979376207,0.0004,2801.8,2801.1,0.505504]
[1763979376394,0.0004,2801.8,2801.3,0.1]
[1763979376787,0.0004,2801.8,2801.6,0.1]
[1763979376983,0.0004,2801.8,2801.7,0.03569261]
[1763979377179,0.0004,2801.8,2801.6,0.1]
[1763979378814,0.0004,2801.8,2801.7,0.54119661]
[1763979378976,0.0004,2801.8,2801.7,1.0429656]
[1763979379173,0.0004,2801.8,2801.7,1.00727299]
[1763979379490,0.0004,2801.8,2801.7,0.505504]
[1763979380784,0.0004,2801.8,2801.7,0.54119661]
[1763979380986,0.0004,2801.8,2801.7,5.01745076]
[1763979381309,0.0004,2801.8,2801.7,1.41249664]
[1763979381877,0.0004,2801.8,2801.7,1.44818925]
[1763979382215,0.0004,2801.8,2801.7,0.90699264]
[1763979384113,0.0004,2801.8,2800.9,3.71331766]
[1763979384114,0.0004,2801.8,2801.3,0.03569771]
[1763979384314,0.0004,2801.8,2801.1,0.1]
[1763979385222,0.0004,2801.8,2800.5,0.14407302]
[1763979385427,0.0004,2801.8,2800.9,0.1]
[1763979385632,0.0004,2801.8,2800.8,0.405504]
[1763979386131,0.0004,2801.8,2800.8,0.1]
[1763979386330,0.0004,2801.8,2801.0,0.1]
[1763979386532,0.0004,2801.8,2801.2,0.1]
[1763979386732,0.0004,2801.8,2801.3,0.03569771]
[1763979387935,0.0004,2801.8,2801.5,0.1]
[1763979388243,0.0004,2801.8,2801.6,0.03569388]
[1763979388419,0.0004,2801.8,2801.5,0.1]
[1763979388845,0.0016,2802.0,2801.5,0.1]
[1763979388995,0.0016,2802.0,2801.6,0.03569388]
[1763979389329,0.0016,2802.0,2801.7,0.1]
[1763979389709,0.0016,2802.0,2801.8,0.03569134]
[1763979389919,0.0016,2802.0,2801.9,0.1]
[1763979390831,0.0016,2802.0,2801.5,0.90699264]
[1763979390832,0.0016,2802.0,2801.6,1.31249664]
[1763979391037,0.0016,2802.0,2801.9,0.1]
[1763979392121,0.0016,2802.0,2801.5,0.03569516]
[1763979392327,0.0016,2802.0,2801.7,0.405504]
[1763979392521,0.0016,2802.0,2801.6,0.1]
[1763979393317,0.0016,2802.0,2801.6,0.405504]
[1763979393747,0.0016,2802.0,2801.6,0.1]
[1763979394427,0.0016,2802.0,2801.7,0.03569261]
[1763979394813,0.0016,2802.0,2801.8,0.1]
[1763979401358,0.0016,2802.0,2801.9,0.03569006]
[1763979401964,0.0016,2802.0,2801.8,0.1]
[1763979403562,0.0016,2802.0,2800.9,0.001]
[1763979403861,0.0016,2802.0,2801.9,0.1]
[1763979405133,0.0016,2802.0,2801.8,0.001]
[1763979407944,0.00114,2802.4,2801.8,0.001]
[1763979408149,0.32594712,2802.6,2801.8,0.001]
[1763979408368,0.90699264,2802.8,2801.8,0.001]
[1763979408547,0.80521015,2802.7,2801.8,0.001]
[1763979409265,0.002,2802.9,2801.8,0.001]
[1763979410570,0.002,2802.9,2801.8,0.101]
[1763979412567,0.90699264,2802.8,2801.8,0.001]
[1763979412865,0.0012,2802.9,2801.8,0.001]
[1763979413469,0.0012,2802.9,2802.0,0.1]
[1763979414041,0.0012,2802.9,2801.8,0.101]
[1763979414562,0.53156432,2802.9,2801.8,0.001]
[1763979415771,0.04272047,2802.9,2801.8,0.001]
[1763979416092,0.0012,2802.9,2801.8,0.001]
[1763979417983,0.04272047,2802.9,2801.8,0.001]
[1763979418665,0.405504,2802.8,2801.8,0.001]
[1763979418988,0.04152047,2802.7,2801.8,0.001]
[1763979420047,0.37584979,2802.7,2801.8,0.001]
[1763979420372,0.33432932,2802.6,2801.8,0.001]
[1763979420562,0.37584979,2802.5,2801.8,0.001]
[1763979420762,0.04152047,2802.5,2801.8,0.001]
[1763979421389,0.37584979,2802.5,2801.8,0.001]
[1763979421595,0.33432932,2802.6,2801.8,0.001]
[1763979421780,0.33432932,2802.5,2801.8,0.001]
[1763979422083,0.33432932,2802.7,2801.8,0.001]
[1763979422246,0.33432932,2802.6,2801.8,0.001]
[1763979422449,0.33432932,2802.5,2801.8,0.001]
[1763979422646,0.33432932,2802.7,2801.8,0.001]
[1763979422882,0.33432932,2802.6,2801.8,0.001]
[1763979423080,0.33432932,2802.7,2801.8,0.001]
[1763979423283,0.33432932,2802.6,2801.8,0.001]
[1763979423491,0.33432932,2802.7,2801.8,0.001]
[1763979423786,0.33432932,2802.6,2801.8,0.001]
[1763979423947,0.33432932,2802.8,2801.8,0.001]
[1763979424156,0.33552932,2802.9,2801.9,0.1]
[1763979424453,0.0012,2802.9,2802.2,0.1]
[1763979424849,0.0012,2802.9,2802.0,0.1]
[1763979425054,0.0012,2802.9,2801.8,0.001]
[1763979425752,0.0012,2802.9,2802.2,0.1]
[1763979426056,0.0012,2802.9,2802.3,0.03568497]
[1763979426250,0.0012,2802.9,2802.2,0.1]
[1763979426456,0.0012,2802.9,2802.3,0.1]
[1763979426876,0.0012,2802.9,2802.2,3.5685895]
[1763979427080,0.0012,2802.9,2802.7,0.1]
[1763979427297,0.0012,2802.9,2802.3,0.405504]
[1763979427509,0.0012,2802.9,2802.3,0.505504]
[1763979427664,0.0012,2802.9,2802.2,0.1]
[1763979428099,0.0012,2802.9,2802.4,0.1]
[1763979429590,0.0012,2802.9,2802.5,0.1]
[1763979429813,0.0012,2802.9,2802.7,0.1]
[1763979430109,0.0012,2802.9,2802.8,0.1]
[1763979430462,0.0012,2802.9,2802.3,0.405504]
[1763979430764,0.0012,2802.9,2802.6,0.1]
[1763979432996,0.0012,2802.9,2802.8,0.1]
[1763979433904,0.0012,2802.9,2802.6,0.1]
[1763979436292,0.0004,2802.9,2802.6,0.1]
[1763979436492,0.0004,2802.9,2802.2,0.1]
[1763979436708,0.00168,2803.5,2802.2,0.1]
[1763979437034,0.04152047,2803.7,2801.9,0.89423402]
[1763979437035,0.96233929,2803.6,2801.9,0.89423402]
[1763979437208,0.04152047,2803.5,2802.0,0.405504]
[1763979437525,0.04152047,2803.5,2801.8,0.90799264]
[1763979437526,0.04152047,2803.5,2802.2,0.1]
[1763979438107,0.04152047,2803.7,2802.2,0.1]
[1763979438493,0.55989451,2803.5,2802.2,0.1]
[1763979438697,0.04152047,2803.4,2802.0,0.1]
[1763979439392,0.55989451,2803.5,2802.2,0.1]
[1763979439598,0.55989451,2803.5,2802.5,0.1]
[1763979440227,0.56189451,2803.5,2802.5,0.1]
[1763979440729,0.56189451,2803.5,2802.2,0.1]
[1763979441727,0.04152047,2803.4,2802.1,0.001]
[1763979442136,0.56189451,2803.5,2802.2,0.1]
[1763979443506,0.37453818,2803.4,2802.1,0.001]
[1763979443705,0.19110852,2803.3,2802.1,0.001]
[1763979444116,0.89243207,2803.2,2802.1,0.001]
[1763979444500,0.19110852,2803.3,2802.1,0.001]
[1763979444724,0.52438777,2803.3,2802.1,0.001]
[1763979445004,0.56189451,2803.5,2802.1,0.101]
[1763979445222,0.37475607,2803.4,2802.1,0.001]
[1763979445627,0.405504,2803.3,2802.1,0.001]
[1763979445818,0.04152047,2803.2,2802.1,0.001]
[1763979446005,0.37475607,2803.2,2802.1,0.001]
[1763979446544,0.3332356,2803.2,2802.1,0.001]
[1763979446703,1.15523835,2803.2,2802.1,0.001]
[1763979447048,0.04152047,2803.1,2802.1,0.001]
[1763979448739,0.37517478,2803.1,2802.1,0.001]
[1763979450417,0.04152047,2803.1,2802.2,12.691331]
[1763979450756,0.55996427,2803.2,2802.7,0.405504]
[1763979451131,0.55996427,2803.2,2802.6,0.1]
[1763979453110,0.55996427,2803.2,2802.7,0.1]
[1763979453220,0.55996427,2803.2,2802.6,0.36683635]
[1763979453417,0.55996427,2803.2,2802.7,0.1]
[1763979455076,0.55996427,2803.2,2802.6,3.56800387]
[1763979455369,0.55996427,2803.2,2803.1,0.1]
[1763979455921,0.55996427,2803.2,2802.8,3.56776186]
[1763979456121,0.55996427,2803.2,2803.1,0.1]
[1763979456374,0.55996427,2803.2,2803.0,0.1]
[1763979456542,0.55996427,2803.2,2803.1,0.1]
[1763979456738,0.55996427,2803.2,2802.5,0.90699264]
[1763979456739,0.002,2803.5,2802.4,1.31249664]
[1763979457057,0.002,2803.5,2803.0,0.1]
[1763979460063,0.0012,2803.5,2803.0,0.1]
[1763979460241,0.55977094,2803.4,2803.0,0.1]
[1763979462062,0.55977094,2803.4,2803.3,0.1]
[1763979462265,0.55977094,2803.4,2803.1,0.1]
[1763979463678,0.55977094,2803.4,2802.8,0.405504]
[1763979463978,0.55977094,2803.4,2802.9,0.49734843]
[1763979464281,0.55977094,2803.4,2802.9,0.1]
[1763979464973,0.55977094,2803.4,2802.8,0.1]
[1763979465150,0.55977094,2803.4,2802.9,0.1]
[1763979468158,0.55977094,2803.4,2802.6,0.405504]
[1763979468782,0.55977094,2803.4,2803.0,0.1]
[1763979470178,0.0012,2803.5,2802.7,0.03567988]
[1763979470386,0.0012,2803.5,2803.0,0.09023613]
[1763979470585,0.0012,2803.5,2803.0,0.12591219]
[1763979470956,0.0012,2803.5,2802.8,0.40092335]
[1763979471155,0.0012,2803.5,2802.5,0.09023613]
[1763979471654,0.56101259,2803.5,2802.5,0.09023613]
[1763979472056,0.56101259,2803.5,2802.3,0.405504]
[1763979472251,0.56101259,2803.5,2802.6,0.09023613]
[1763979473506,0.56101259,2803.5,2802.5,0.09023613]
[1763979473793,0.55981612,2803.3,2802.5,0.09023613]
[1763979473983,0.55981612,2803.3,2802.6,0.09023613]
[1763979474497,0.55981612,2803.3,2802.4,0.90699264]
[1763979474671,0.55981612,2803.3,2802.5,0.44754807]
[1763979474986,0.55981612,2803.3,2802.6,0.09023613]
[1763979475686,0.55981612,2803.3,2802.5,0.44754807]
[1763979476218,0.55981612,2803.3,2802.6,0.09023613]
[1763979476672,0.55981612,2803.3,2802.5,0.001]
[1763979476876,0.55981612,2803.3,2802.6,0.4476299]
[1763979477074,0.55981612,2803.3,2802.5,0.001]
[1763979478607,0.55981612,2803.3,2802.5,0.09123613]
[1763979479094,0.55981612,2803.3,2802.5,0.001]
[1763979481996,0.33403762,2803.2,2802.5,0.001]
[1763979482295,1.31249664,2802.9,2802.5,0.001]
[1763979482593,6.68604247,2802.6,2802.5,0.001]
[1763979482801,8.33257673,2802.6,2802.5,0.001]
[1763979482965,9.10164781,2802.6,2802.5,0.001]
[1763979483156,8.33257673,2802.6,2802.5,0.001]
[1763979483866,1.31169664,2802.5,2802.1,0.001]
[1763979484091,1.7612226,2802.8,2802.1,0.001]
[1763979484092,7.59303511,2802.2,2802.1,0.001]
[1763979484360,7.92707273,2802.2,2802.1,0.001]
[1763979485186,7.59303511,2802.2,2802.1,0.001]
[1763979485795,7.99853911,2802.2,2802.1,0.001]
[1763979486493,0.90699264,2802.2,2802.1,0.001]
[1763979486915,1.08868891,2802.2,2802.1,0.001]
[1763979487090,0.90699264,2802.2,2802.1,0.001]
[1763979491193,0.5601025,2802.9,2802.1,0.001]
[1763979492816,0.04152047,2802.8,2802.1,0.001]
[1763979493013,0.5601025,2802.9,2802.1,0.001]
[1763979493476,0.04152047,2802.8,2802.1,0.001]
[1763979493677,0.5601025,2802.9,2802.1,0.001]
[1763979494880,0.04152047,2802.8,2802.1,0.001]
[1763979495423,0.5601025,2802.9,2802.1,0.001]
[1763979495846,0.04152047,2802.8,2802.1,0.001]
[1763979496321,0.405504,2802.8,2802.1,0.001]
[1763979496622,0.5601025,2802.9,2802.1,0.001]
[1763979497391,0.405504,2803.4,2802.1,0.001]
[1763979497610,0.73741265,2803.4,2802.1,0.001]
[1763979499919,0.406704,2803.5,2802.1,0.001]
[1763979500122,0.73894083,2803.5,2802.1,0.001]
[1763979500421,1.31249664,2803.2,2802.1,0.001]
[1763979500621,0.79985391,2803.1,2802.1,0.001]
[1763979500842,1.35981031,2803.1,2802.1,0.001]
[1763979501014,0.5599564,2803.1,2802.1,0.001]
[1763979501405,0.5599564,2803.1,2802.1,0.03668752]
[1763979501748,0.5599564,2803.1,2802.2,0.09023613]
[1763979502425,0.5599564,2803.1,2802.1,0.001]
[1763979502426,0.04152047,2803.0,2802.1,0.001]
[1763979504704,0.5599564,2803.1,2802.1,0.001]
[1763979504910,0.5599564,2803.1,2802.1,0.09123613]
[1763979505244,0.5599564,2803.1,2802.4,0.09023613]
[1763979506714,0.5599564,2803.1,2802.4,0.405504]
[1763979506956,0.5599564,2803.1,2802.7,0.09023613]
[1763979507329,0.5599564,2803.1,2802.4,0.405504]
[1763979507535,0.5591564,2803.1,2802.5,0.09023613]
[1763979508812,0.5591564,2803.1,2802.1,0.001]
[1763979509012,0.5591564,2803.1,2802.2,0.09023613]
[1763979510043,0.5591564,2803.1,2802.1,0.001]
[1763979510251,0.5591564,2803.1,2802.1,0.09123613]
[1763979510613,0.5611564,2803.1,2802.1,0.09123613]
[1763979510837,0.002,2803.1,2802.1,0.40777459]
[1763979511043,0.002,2803.1,2802.1,0.03668752]
[1763979511238,0.002,2803.1,2802.2,0.09023613]
[1763979511442,0.002,2803.1,2802.1,0.001]
[1763979512052,0.002,2803.1,2802.5,0.09023613]
[1763979512255,0.002,2803.1,2802.8,0.09023613]
[1763979512544,0.002,2803.1,2802.7,0.09023613]
[1763979513746,0.002,2803.1,2802.4,0.405504]
[1763979513952,0.002,2803.1,2802.5,0.09023613]
[1763979514365,0.56184498,2803.1,2802.5,0.09023613]
[1763979515558,0.56184498,2803.1,2802.3,0.09023613]
[1763979517756,0.56184498,2803.1,2802.3,0.54693296]
[1763979518068,0.56184498,2803.1,2802.6,0.09023613]
[1763979518268,0.56184498,2803.1,2802.3,0.47023225]
[1763979518474,0.56184498,2803.1,2802.3,0.37820296]
[1763979518634,0.56184498,2803.1,2802.4,0.09023613]
[1763979519346,0.56184498,2803.1,2802.4,0.12591982]
[1763979519666,0.56184498,2803.1,2802.4,0.4953686]
[1763979519866,0.56184498,2803.1,2802.4,0.40513247]
[1763979520068,0.56184498,2803.1,2802.7,0.09023613]
[1763979520281,0.002,2803.4,2803.0,6.68604247]
[1763979520585,0.002,2803.6,2803.4,10.58934164]
[1763979520786,0.002,2803.6,2803.5,25.3237976]
[1763979521337,0.002,2803.6,2803.5,18.15875545]
[1763979521551,0.002,2803.6,2803.5,0.49574013]
[1763979521888,0.002,2803.6,2803.5,0.09023613]
[1763979522038,0.002,2803.6,2803.5,5.33252574]
[1763979522469,0.002,2803.6,2803.5,1.76555589]
[1763979523875,0.002,2803.6,2803.5,5.73802974]
[1763979524090,0.002,2803.6,2803.5,2.17105989]
[1763979524443,0.002,2803.6,2803.5,4.96970262]
[1763979526677,0.002,2803.6,2803.5,0.99722877]
[1763979528055,0.002,2803.6,2803.3,1.31249664]
[1763979528266,0.002,2803.6,2803.4,0.09023613]
[1763979528466,0.002,2803.6,2803.5,0.09023613]
[1763979528666,0.002,2803.6,2803.5,0.58723099]
[1763979528947,0.002,2803.6,2803.5,0.49699486]
[1763979529152,0.002,2803.6,2803.0,0.09023613]
[1763979529981,0.002,2803.6,2802.8,0.0356786]
[1763979530152,0.002,2803.6,2803.1,0.09023613]
[1763979530955,0.002,2803.6,2803.0,0.09023613]
[1763979531498,0.0012,2803.6,2803.0,0.09023613]
[1763979531663,0.0012,2803.6,2803.1,0.09023613]
[1763979532050,0.0012,2803.6,2803.0,0.54674232]
[1763979532250,0.0012,2803.6,2803.1,0.09023613]
[1763979532585,0.0012,2803.6,2803.0,0.12591219]
[1763979532765,0.0012,2803.6,2803.1,0.09023613]
[1763979534177,0.0012,2803.6,2803.2,0.09023613]
[1763979535456,0.0012,2803.6,2803.1,0.09023613]
[1763979535865,0.0012,2803.6,2802.5,0.39378164]
[1763979536067,0.0012,2803.6,2802.7,0.90699264]
[1763979536272,0.0012,2803.6,2803.0,0.09023613]
[1763979537102,0.0012,2803.6,2803.1,0.09023613]
[1763979538084,0.0012,2803.6,2803.2,0.09023613]
[1763979539002,0.0012,2803.6,2803.0,0.09023613]
[1763979539305,0.0012,2803.6,2803.1,0.09023613]
[1763979540288,0.0012,2803.6,2803.2,0.09023613]
[1763979540904,0.0012,2803.6,2803.3,0.03567224]
[1763979541104,0.0012,2803.6,2803.5,0.09023613]
[1763979541611,0.0012,2803.6,2803.5,0.49574013]
[1763979542303,0.0012,2803.6,2803.5,4.96970262]
[1763979542508,0.0012,2803.6,2803.5,5.82338098]
[1763979542881,0.0012,2803.6,2803.5,5.85905067]
[1763979543281,0.0012,2803.6,2803.5,5.82338098]
[1763979545697,0.0012,2803.6,2803.5,13.17057167]
[1763979545904,0.0012,2803.6,2803.5,12.12240198]
[1763979546421,0.0012,2803.6,2803.5,8.08102998]
[1763979546589,0.0012,2803.6,2803.5,5.82338098]
[1763979546790,0.0012,2803.6,2803.5,7.90544398]
[1763979547599,0.0012,2803.6,2803.5,15.43046598]
[1763979547923,0.0012,2803.6,2803.5,12.18075298]
[1763979548389,0.002,2803.7,2803.6,12.5823394]
[1763979548588,0.002,2803.7,2803.6,14.77059592]
[1763979549825,0.002,2803.7,2803.6,15.92987992]
[1763979550004,0.002,2803.7,2803.6,14.13087292]
[1763979550833,0.002,2803.7,2803.6,24.19891392]
[1763979551036,0.002,2803.7,2803.6,14.52527292]
[1763979551360,0.002,2803.7,2803.6,13.00927992]
[1763979551858,0.002,2803.7,2803.6,26.18780092]
[1763979552653,0.002,2803.7,2803.6,25.44717292]
[1763979552859,0.002,2803.7,2803.6,10.97783192]
[1763979553156,0.002,2803.7,2803.6,25.47593592]